bitfinex-derivatives/quotes_SOLF0:USTF0_20240924
["timestamp","ask_amount","ask_price","bid_price","bid_amount"]
[1727163178810,3.4212,146.16,146.12,3.4219]
[1727163180214,3.4212,146.16,146.13,3.4217]
[1727163180610,12.8508,146.17,146.12,9.43]
[1727163182010,9.43,146.2,146.15,9.43]
[1727163182608,9.43,146.2,146.15,12.89290719]
[1727163182805,12.8501,146.2,146.16,3.4209]
[1727163183213,12.8501,146.2,146.15,12.89290719]
[1727163183415,12.8501,146.2,146.16,9.43]
[1727163183809,80.1895639,146.23,146.19,9.43]
[1727163184015,80.1895639,146.23,146.19,12.8641637]
[1727163184509,80.1895639,146.23,146.2,3.4199]
[1727163184801,89.6195639,146.23,146.18,9.43]
[1727163185613,9.43,146.21,146.13,11.11215926]
[1727163185808,9.43,146.21,146.15,9.43]
[1727163186010,9.43,146.21,146.15,12.909516]
[1727163186207,9.43,146.18,146.13,11.11215926]
[1727163186405,9.43,146.17,146.12,11.11484299]
[1727163186616,9.43,146.17,146.14,3.4213]
[1727163188319,12.8508,146.17,146.14,3.4213]
[1727163189314,9.43,146.16,146.11,1.3409]
[1727163189911,1.4221,146.2,146.14,9.43]
[1727163190116,10.8521,146.2,146.14,9.43]
[1727163190622,3.4205,146.19,146.15,3.4213]
[1727163192522,9.43,146.18,146.13,12.8715851]
[1727163192819,9.43,146.18,146.13,9.43]
[1727163193222,9.43,146.18,146.13,12.8597153]
[1727163193518,1.4221,146.2,146.16,9.43]
[1727163193717,9.43,146.21,146.16,9.43]
[1727163194216,1.4237,146.26,146.13,8.1198686]
[1727163194217,89.6195639,146.23,146.18,9.43]
[1727163194417,9.43,146.23,146.18,9.43]
[1727163194823,9.43,146.22,146.17,9.43]
[1727163195017,1.4237,146.26,146.16,9.43]
[1727163195214,9.43,146.21,146.16,9.43]
[1727163195420,9.43,146.21,146.17,9.43]
[1727163195421,3.4199,146.21,146.17,9.43]
[1727163196017,1.4237,146.26,146.18,9.43]
[1727163196313,9.43,146.24,146.18,9.43]
[1727163196519,3.4196,146.23,146.2,3.4201]
[1727163197323,3.4196,146.22,146.19,3.4203]
[1727163198424,1.4237,146.26,146.21,9.43]
[1727163199119,1.4237,146.26,146.21,12.8497]
[1727163199120,3.4192,146.24,146.21,12.8497]
[1727163199324,9.43,146.23,146.18,9.43]
[1727163199522,9.43,146.23,146.16,1.4411]
[1727163199712,3.42,146.21,146.18,3.4205]
[1727163199916,9.43,146.21,146.16,10.8711]
[1727163200321,9.43,146.21,146.17,3.4206]
[1727163200322,12.8501,146.21,146.17,3.4206]
[1727163200626,9.43,146.21,146.17,3.4206]
[1727163201522,12.85,146.21,146.17,3.4206]
[1727163202523,3.42,146.21,146.17,3.4206]
[1727163203725,3.4201,146.2,146.17,3.4206]
[1727163206025,3.42,146.21,146.17,3.4206]
[1727163206324,14.78,146.23,146.18,3.4205]
[1727163206822,3.4198,146.22,146.18,3.4205]
[1727163207019,14.78,146.23,146.17,3.4207]
[1727163207215,3.42,146.21,146.17,3.4207]
[1727163210529,3.4197,146.22,146.18,3.4205]
[1727163210932,2.846,146.26,146.17,14.78]
[1727163211125,3.4194,146.24,146.2,3.4199]
[1727163211731,3.4194,146.24,146.21,3.4199]
[1727163211932,3.4194,146.24,146.17,14.78]
[1727163212231,3.4194,146.23,146.18,11.13399544]
[1727163212430,3.4194,146.23,146.17,14.78]
[1727163212630,3.4194,146.23,146.18,11.1359536]
[1727163212936,3.4194,146.23,146.17,14.78]
[1727163213532,3.4197,146.22,146.18,6.43928299]
[1727163213727,3.4197,146.22,146.17,14.78]
[1727163213927,3.4197,146.22,146.16,1.4411]
[1727163214128,3.4197,146.22,146.17,6.43953454]
[1727163214328,3.4197,146.22,146.18,8.11825005]
[1727163214634,3.4197,146.22,146.18,3.4204]
[1727163217132,3.4188,146.26,146.22,3.4194]
[1727163218441,1.3473,146.28,146.19,14.78]
[1727163218744,1.3473,146.28,146.21,3.4198]
[1727163219747,3.4191,146.25,146.21,3.4198]
[1727163220450,14.78,146.26,146.17,14.78]
[1727163220643,14.78,146.26,146.18,6.43511473]
[1727163220844,14.78,146.26,146.17,14.78]
[1727163221050,3.4196,146.23,146.19,3.4203]
[1727163224043,3.4193,146.24,146.21,3.4198]
[1727163226045,3.4193,146.24,146.2,3.42]
[1727163228346,3.4193,146.24,146.2,12.88]
[1727163229253,3.4193,146.24,146.21,3.4199]
[1727163230152,3.4193,146.24,146.2,12.88]
[1727163236747,9.46,146.27,146.22,9.46]
[1727163236961,1.3473,146.28,146.23,9.46]
[1727163237260,3.4183,146.28,146.25,3.4188]
[1727163237850,3.4185,146.27,146.23,9.46]
[1727163238155,9.46,146.26,146.2,15.88676555]
[1727163238464,12.8793,146.24,146.19,15.88676555]
[1727163238654,12.8793,146.24,146.19,9.46]
[1727163238848,12.8793,146.24,146.2,3.42]
[1727163240164,12.8793,146.24,146.21,3.4199]
[1727163240360,14.78,146.26,146.19,4.68936738]
[1727163240570,3.476982,146.28,146.19,4.68936738]
[1727163240571,14.78,146.24,146.19,4.68936738]
[1727163240763,14.78,146.26,146.2,3.4199]
[1727163240959,3.4192,146.24,146.2,3.4199]
[1727163241160,234.21158022,146.37,146.2,14.78]
[1727163241357,234.21158022,146.37,146.19,4.68936738]
[1727163241358,14.78,146.32,146.22,14.78]
[1727163241569,3.4182,146.29,146.22,18.19086331]
[1727163243861,3.4182,146.29,146.24,3.419]
[1727163244567,3.4182,146.29,146.25,3.4189]
[1727163246765,3.4182,146.29,146.26,3.4187]
[1727163251371,4.2132,146.33,146.25,3.4188]
[1727163251372,3.4182,146.28,146.25,3.4188]
[1727163255472,14.78,146.3,146.26,3.4187]
[1727163255473,3.4181,146.29,146.26,3.4187]
[1727163255886,3.37928022,146.37,146.21,6.02931901]
[1727163256070,4.2423,146.38,146.25,14.78]
[1727163256383,14.78,146.36,146.27,14.78]
[1727163257173,3.417,146.34,146.3,3.4177]
[1727163257373,14.78,146.36,146.3,3.4177]
[1727163257980,3.4171,146.33,146.3,3.4177]
[1727163258683,18.11926006,146.34,146.28,3.418]
[1727163258879,18.20884497,146.34,146.28,3.418]
[1727163259283,3.4177,146.31,146.28,3.418]
[1727163259479,14.78,146.32,146.26,1.4165]
[1727163259679,17.5781,146.38,146.28,14.78]
[1727163259876,17.5781,146.38,146.33,3.417]
[1727163260087,1.3702,146.41,146.26,1.4165]
[1727163260088,1.3702,146.41,146.3,14.78]
[1727163260347,3.4155,146.4,146.32,14.78]
[1727163260479,16.1502,146.41,146.32,14.78]
[1727163260785,16.1502,146.41,146.3,14.78]
[1727163260984,3.4162,146.37,146.33,3.4169]
[1727163262682,3.4162,146.37,146.3,14.78]
[1727163262884,14.78,146.39,146.3,14.78]
[1727163263180,14.78,146.39,146.28,19.4574233]
[1727163264287,14.78,146.39,146.28,14.78]
[1727163264888,3.4165,146.36,146.31,3.4175]
[1727163265184,14.78,146.39,146.31,14.78]
[1727163265390,3.4161,146.38,146.33,3.4169]
[1727163265981,3.4162,146.37,146.33,3.4169]
[1727163266183,14.78,146.39,146.32,3.4172]
[1727163267794,3.4164,146.36,146.32,3.4172]
[1727163271194,14.78,146.39,146.33,3.4168]
[1727163271390,14.78,146.39,146.31,14.78]
[1727163271584,14.78,146.39,146.33,3.4169]
[1727163271585,3.4161,146.37,146.33,3.4169]
[1727163274404,80.07554967,146.45,146.36,14.78]
[1727163274711,81.41804967,146.45,146.38,14.78]
[1727163275203,80.07554967,146.45,146.4,14.78]
[1727163275406,4.78592248,146.48,146.42,14.78]
[1727163275600,1.3242,146.48,146.4,14.78]
[1727163275794,4.74679936,146.48,146.4,14.78]
[1727163275994,1.3242,146.48,146.4,14.78]
[1727163276196,3.4144,146.45,146.4,14.78]
[1727163276613,16.1042,146.48,146.38,16.199]
[1727163276907,16.1042,146.48,146.39,3.4156]
[1727163277304,14.78,146.45,146.35,1.313]
[1727163277505,14.78,146.43,146.35,4.67923357]
[1727163277708,14.78,146.43,146.35,1.313]
[1727163277896,14.78,146.43,146.37,3.4161]
[1727163277897,3.4153,146.41,146.37,3.4161]
[1727163278092,14.78,146.43,146.29,1.3267]
[1727163278295,1.4379,146.44,146.31,14.78]
[1727163278296,14.78,146.41,146.31,14.78]
[1727163279699,3.4157,146.39,146.34,3.4166]
[1727163280806,3.4157,146.39,146.35,3.4166]
[1727163285816,1.3696,146.43,146.36,14.78]
[1727163286311,3.4151,146.42,146.38,3.4157]
[1727163286906,3.4152,146.41,146.38,3.4157]
[1727163287106,1.3696,146.43,146.39,3.4156]
[1727163287315,1.3696,146.43,146.36,14.78]
[1727163289009,3.4152,146.41,146.38,3.4158]
[1727163289211,14.78,146.46,146.36,14.78]
[1727163289417,14.78,146.46,146.36,16.1941]
[1727163290117,14.78,146.46,146.39,3.4157]
[1727163290908,14.78,146.44,146.38,3.4158]
[1727163291111,14.78,146.42,146.35,3.35838665]
[1727163291410,14.78,146.42,146.35,3.4165]
[1727163291816,14.78,146.41,146.35,3.4165]
[1727163292619,14.78,146.41,146.36,3.4163]
[1727163292915,3.416,146.38,146.34,1.4281]
[1727163293314,3.416,146.38,146.34,4.8448]
[1727163295717,3.4162,146.37,146.34,1.4281]
[1727163296920,14.78,146.39,146.29,14.78]
[1727163297220,14.78,146.37,146.29,2.7768]
[1727163297416,3.417,146.34,146.3,3.4177]
[1727163297820,14.78,146.37,146.29,2.7768]
[1727163298507,14.78,146.37,146.3,3.4177]
[1727163298508,3.417,146.34,146.3,3.4177]
[1727163300023,3.45144878,146.39,146.29,17.5568]
[1727163300324,14.78,146.42,146.33,14.78]
[1727163300623,14.78,146.42,146.35,3.4164]
[1727163300823,14.78,146.42,146.35,3.3588569]
[1727163301126,14.78,146.42,146.33,14.78]
[1727163301325,14.78,146.42,146.34,3.43380654]
[1727163301726,2.6756,146.45,146.36,14.78]
[1727163301931,16.1859,146.49,146.38,14.78]
[1727163302228,3.4137,146.48,146.42,14.78]
[1727163302416,224.0,146.68,146.47,14.78]
[1727163302615,3.4121,146.55,146.49,3.4131]
[1727163303126,3.4121,146.55,146.47,14.78]
[1727163303316,4.1583,146.59,146.49,14.78]
[1727163303516,14.78,146.58,146.49,14.78]
[1727163304036,3.412,146.55,146.5,3.4131]
[1727163304523,3.412,146.55,146.49,3.4133]
[1727163306631,3.4122,146.54,146.49,3.4133]
[1727163309519,23.61,146.57,146.44,23.61]
[1727163309727,23.61,146.55,146.44,23.61]
[1727163310630,3.4132,146.5,146.45,3.4141]
[1727163310828,23.61,146.55,146.43,2.6733]
[1727163311227,3.4135,146.49,146.44,3.4144]
[1727163311426,23.61,146.55,146.43,1.3638]
[1727163311631,23.61,146.52,146.43,1.3638]
[1727163311829,3.4137,146.48,146.43,4.7784]
[1727163312029,3.4137,146.48,146.43,1.3638]
[1727163312637,3.4133,146.49,146.45,3.4142]
[1727163312822,1.4334,146.51,146.45,3.4142]
[1727163313434,3.4132,146.5,146.45,3.4142]
[1727163313634,1.4334,146.51,146.45,3.4142]
[1727163314937,1.4334,146.51,146.44,3.4145]
[1727163315833,3.4138,146.48,146.44,3.4145]
[1727163316038,1.4334,146.51,146.43,1.3638]
[1727163316229,23.61,146.55,146.45,23.61]
[1727163316430,3.4128,146.52,146.45,23.61]
[1727163316740,3.4128,146.52,146.48,3.4135]
[1727163319737,23.61,146.57,146.49,3.4133]
[1727163320628,23.61,146.57,146.45,23.61]
[1727163320629,3.4125,146.53,146.5,3.4131]
[1727163321839,3.4127,146.52,146.49,3.4133]
[1727163322034,23.61,146.57,146.45,23.61]
[1727163323044,1.4365,146.58,146.48,3.4134]
[1727163323339,25.0465,146.58,146.48,3.4134]
[1727163324136,25.0465,146.58,146.45,23.61]
[1727163324338,25.0465,146.58,146.43,1.3638]
[1727163324339,14.76,146.57,146.47,14.76]
[1727163326435,3.4126,146.52,146.49,3.4132]
[1727163328635,14.76,146.57,146.46,14.76]
[1727163328839,1.4365,146.58,146.43,1.3638]
[1727163328840,14.76,146.55,146.43,1.3638]
[1727163329044,14.76,146.55,146.43,16.1238]
[1727163329539,14.76,146.55,146.45,14.76]
[1727163330137,3.4126,146.52,146.48,14.76]
[1727163330734,3.4123,146.54,146.5,3.4129]
[1727163331245,14.76,146.57,146.48,14.76]
[1727163331637,14.76,146.55,146.46,14.76]
[1727163333248,3.4131,146.51,146.47,3.4137]
[1727163333945,3.4127,146.52,146.46,14.76]
[1727163334143,3.4127,146.52,146.48,14.76]
[1727163334748,3.4127,146.52,146.48,18.1734]
[1727163337944,3.4129,146.51,146.45,14.76]
[1727163338247,14.76,146.55,146.45,14.76]
[1727163338656,3.4135,146.49,146.46,3.4138]
[1727163339250,3.4137,146.48,146.45,3.4142]
[1727163339451,3.4137,146.48,146.44,14.76]
[1727163339956,3.4138,146.47,146.44,18.1743]
[1727163340953,14.76,146.55,146.46,14.76]
[1727163341251,3.413,146.51,146.47,3.4137]
[1727163341446,16.1422,146.56,146.46,14.76]
[1727163341855,16.1422,146.56,146.47,3.4138]
[1727163341856,3.4132,146.5,146.47,3.4138]
[1727163342045,16.1422,146.56,146.46,14.76]
[1727163342240,14.76,146.53,146.44,14.76]
[1727163342453,14.76,146.53,146.45,3.4142]
[1727163343356,3.4137,146.48,146.45,3.4142]
[1727163344552,3.4137,146.48,146.44,18.1744]
[1727163344751,3.4138,146.47,146.44,18.1744]
[1727163344954,3.4138,146.47,146.43,1.3638]
[1727163345150,14.76,146.52,146.43,4.7784]
[1727163345352,3.414,146.46,146.43,4.7784]
[1727163345547,3.414,146.46,146.42,19.55435565]
[1727163345548,14.76,146.5,146.42,1.3413]
[1727163345751,1.3682,146.49,146.42,4.7562]
[1727163345942,3.4143,146.45,146.42,4.7562]
[1727163346448,3.4143,146.45,146.41,3.4151]
[1727163347647,3.4143,146.45,146.42,3.4149]
[1727163348047,1.3682,146.49,146.42,14.76]
[1727163348454,1.3682,146.49,146.43,3.47199453]
[1727163349360,3.4136,146.48,146.44,3.4144]
[1727163352460,3.4136,146.48,146.45,3.4142]
[1727163354260,3.4136,146.48,146.44,3.4144]
[1727163355157,3.4139,146.47,146.43,6.88659453]
[1727163355363,1.3682,146.49,146.43,6.88659453]
[1727163356154,1.3682,146.49,146.42,18.1748]
[1727163356357,1.3682,146.49,146.42,3.4148]
[1727163356866,3.4143,146.46,146.42,6.85240894]
[1727163358358,3.4143,146.46,146.42,3.4148]
[1727163358958,3.4143,146.45,146.42,3.4148]
[1727163359470,3.4144,146.45,146.41,6.82685183]
[1727163359963,3.4144,146.45,146.41,3.41165183]
[1727163360963,3.4144,146.45,146.42,3.4149]
[1727163361156,3.4144,146.45,146.42,6.84943316]
[1727163361357,3.4144,146.45,146.42,3.4149]
[1727163361765,3.4141,146.46,146.42,3.4149]
[1727163361962,1.3682,146.49,146.44,3.4145]
[1727163363767,3.4137,146.48,146.44,3.4145]
[1727163367662,1.3477,146.53,146.46,14.76]
[1727163367864,1.3999,146.59,146.49,14.76]
[1727163368165,18.87,146.59,146.49,14.76]
[1727163368364,4.11,146.59,146.49,14.76]
[1727163368569,18.87,146.59,146.49,14.76]
[1727163368772,3.4117,146.56,146.5,14.76]
[1727163369362,3.4117,146.56,146.51,3.4127]
[1727163369562,3.412,146.55,146.51,3.4127]
[1727163373465,3.4122,146.54,146.5,3.413]
[1727163374773,3.412,146.55,146.5,3.413]
[1727163375473,3.412,146.55,146.51,3.4128]
[1727163375978,18.87,146.59,146.5,18.1729]
[1727163376165,18.87,146.59,146.5,14.76]
[1727163376369,3.4118,146.56,146.5,14.76]
[1727163376574,3.4118,146.56,146.51,3.4127]
[1727163377275,3.4118,146.56,146.52,3.4126]
[1727163379881,3.4118,146.56,146.53,3.4124]
[1727163382280,3.4119,146.55,146.52,12.8525]
[1727163385089,3.4119,146.55,146.52,3.4125]
[1727163386486,9.44,146.55,146.48,11.08021895]
[1727163386681,9.44,146.54,146.49,9.44]
[1727163387085,3.4126,146.52,146.49,12.8532]
[1727163387884,9.44,146.5,146.37,6.8319]
[1727163388091,9.44,146.48,146.42,9.44]
[1727163388284,3.414,146.47,146.43,6.74951319]
[1727163388691,3.414,146.47,146.43,3.4147]
[1727163389091,3.4136,146.48,146.44,12.8545]
[1727163390492,3.4136,146.48,146.44,3.4145]
[1727163390683,3.4134,146.49,146.45,3.4142]
[1727163390885,2.7962,146.51,146.42,18.16540878]
[1727163392484,3.4133,146.49,146.45,3.4141]
[1727163393189,2.7962,146.51,146.44,14.75]
[1727163393394,1.3552,146.53,146.47,14.75]
[1727163393689,1.3552,146.53,146.47,18.22255047]
[1727163393990,1.3552,146.53,146.44,11.0866414]
[1727163393991,3.4129,146.51,146.45,14.75]
[1727163395884,3.4129,146.51,146.47,3.4136]
[1727163398896,3.4132,146.5,146.46,3.4139]
[1727163399196,14.75,146.52,146.44,3.33867559]
[1727163399400,17.5144,146.52,146.44,3.33867559]
[1727163399598,17.5144,146.52,146.43,17.3694]
[1727163400088,3.4134,146.49,146.45,3.4141]
[1727163402100,3.4136,146.48,146.45,3.4141]
[1727163402596,3.4136,146.48,146.44,6.88692202]
[1727163403002,3.4136,146.48,146.44,3.47252202]
[1727163403196,3.4136,146.48,146.44,6.88692202]
[1727163405796,17.5144,146.52,146.43,6.034]
[1727163405797,3.414,146.46,146.43,6.034]
[1727163405999,17.5144,146.52,146.43,2.6194]
[1727163406500,17.5144,146.52,146.44,3.4145]
[1727163407893,3.4138,146.47,146.44,3.4145]
[1727163408997,3.4138,146.47,146.43,9.45543003]
[1727163409800,3.4142,146.46,146.42,3.4148]
[1727163410402,12.8542,146.46,146.42,3.4148]
[1727163411596,3.4144,146.45,146.41,6.81774973]
[1727163411795,2.7644,146.52,146.41,3.4151]
[1727163411995,9.44,146.46,146.41,12.90503209]
[1727163412396,12.8542,146.46,146.42,3.4148]
[1727163412901,2.7644,146.52,146.44,3.4144]
[1727163413200,9.44,146.48,146.42,9.44]
[1727163413397,3.414,146.46,146.42,9.44]
[1727163413996,3.414,146.46,146.42,12.8548]
[1727163420710,2.7644,146.52,146.44,9.44]
[1727163420908,12.2044,146.52,146.48,9.44]
[1727163421208,3.4125,146.53,146.49,12.8532]
[1727163421411,9.44,146.54,146.49,9.44]
[1727163421704,9.44,146.54,146.5,9.44]
[1727163421906,3.4123,146.54,146.5,12.8531]
[1727163422104,9.44,146.55,146.5,12.8531]
[1727163422407,9.44,146.54,146.49,9.44]
[1727163422805,3.4128,146.52,146.49,9.44]
[1727163424005,2.6095,146.59,146.49,9.44]
[1727163424207,2.6095,146.59,146.45,4.66736783]
[1727163424208,9.44,146.56,146.51,9.44]
[1727163424405,3.4119,146.55,146.51,12.8527]
[1727163424609,9.44,146.56,146.51,12.8527]
[1727163425005,9.44,146.55,146.5,9.44]
[1727163425204,9.44,146.52,146.48,9.44]
[1727163426010,12.8528,146.52,146.48,12.8535]
[1727163426408,3.413,146.51,146.48,9.44]
[1727163426913,2.6095,146.59,146.44,4.66705806]
[1727163426914,9.44,146.5,146.44,4.66705806]
[1727163427113,9.44,146.5,146.46,8.08158043]
[1727163427114,12.8532,146.5,146.46,8.08158043]
[1727163427306,9.44,146.5,146.45,9.44]
[1727163427610,2.6095,146.59,146.45,12.8542]
[1727163427611,3.4135,146.49,146.45,12.8542]
[1727163433318,12.8535,146.49,146.45,12.8542]
[1727163433820,12.8535,146.49,146.45,3.4142]
[1727163434214,9.44,146.49,146.44,9.44]
[1727163434511,9.44,146.48,146.43,1.3959]
[1727163435415,3.4139,146.47,146.43,4.8105]
[1727163436014,3.4136,146.48,146.44,3.4143]
[1727163436521,3.4139,146.47,146.43,4.8104]
[1727163436710,9.44,146.49,146.43,10.8359]
[1727163437114,3.4137,146.48,146.44,3.4144]
[1727163437318,9.44,146.49,146.43,1.3959]
[1727163437514,9.44,146.47,146.43,10.8359]
[1727163437820,9.44,146.44,146.4,11.07813412]
[1727163438022,4.1873,146.52,146.37,9.42518266]
[1727163438023,9.44,146.42,146.37,9.42518266]
[1727163438220,9.44,146.42,146.37,15.4899647]
[1727163438515,9.44,146.42,146.37,10.8173]
[1727163439624,12.8551,146.42,146.37,10.8173]
[1727163439919,9.44,146.42,146.37,10.8173]
[1727163440328,9.44,146.4,146.27,6.846]
[1727163440522,9.44,146.4,146.34,9.44]
[1727163442316,3.4157,146.39,146.35,3.4166]
[1727163443324,12.8555,146.4,146.35,3.4166]
[1727163444025,12.8555,146.4,146.36,3.4163]
[1727163448523,9.44,146.39,146.36,3.4163]
[1727163449527,9.44,146.37,146.34,3.4168]
[1727163449728,9.44,146.36,146.32,4.67131572]
[1727163450228,9.44,146.36,146.33,3.417]
[1727163450431,9.44,146.37,146.32,14.11131572]
[1727163450733,9.44,146.39,146.34,9.44]
[1727163451831,9.44,146.39,146.36,3.4162]
[1727163455241,3.4153,146.41,146.37,3.4161]
[1727163455425,4.0165,146.43,146.37,9.44]
[1727163455426,1.3739,146.43,146.37,9.44]
[1727163455739,12.8548,146.43,146.39,3.4155]
[1727163456032,9.44,146.43,146.38,9.44]
[1727163456532,9.44,146.43,146.4,3.4154]
[1727163457830,12.8547,146.43,146.39,3.4156]
[1727163458339,9.44,146.41,146.39,3.4156]
[1727163458537,9.44,146.41,146.38,3.4158]
[1727163458741,9.44,146.41,146.37,1.3711]
[1727163459937,9.44,146.41,146.39,3.4156]
[1727163460139,9.44,146.41,146.37,1.3711]
[1727163460740,9.44,146.41,146.38,3.4157]
[1727163461539,9.44,146.39,146.3,6.39025812]
[1727163461737,9.44,146.38,146.3,4.84891451]
[1727163461937,9.44,146.38,146.33,9.44]
[1727163462441,9.44,146.38,146.35,3.4164]
[1727163465741,9.44,146.37,146.34,3.4167]
[1727163465943,9.44,146.37,146.32,9.44]
[1727163467549,9.44,146.37,146.34,3.4167]
[1727163468749,9.44,146.37,146.35,3.4166]
[1727163469848,4.80388222,146.44,146.3,4.84891451]
[1727163469849,9.44,146.36,146.3,4.84891451]
[1727163470044,9.44,146.34,146.3,1.4049]
[1727163470346,9.44,146.36,146.31,9.44]
[1727163471042,9.44,146.36,146.31,12.86171847]
[1727163471847,9.44,146.36,146.33,3.4169]
[1727163481050,3.4155,146.4,146.34,9.44]
[1727163481250,9.44,146.4,146.35,9.44]
[1727163481660,1.3534,146.43,146.35,9.44]
[1727163481858,1.3534,146.43,146.37,9.44]
[1727163482058,9.44,146.41,146.37,9.44]
[1727163482859,12.8552,146.41,146.38,3.4159]
[1727163483060,1.3534,146.43,146.38,3.4159]
[1727163483258,9.44,146.42,146.37,9.44]
[1727163483659,12.855,146.42,146.38,3.4158]
[1727163483860,9.44,146.4,146.31,4.82804745]
[1727163484163,9.44,146.4,146.34,9.44]
[1727163484665,9.44,146.39,146.36,3.4162]
[1727163484965,9.44,146.38,146.33,9.44]
[1727163485367,9.44,146.39,146.35,3.4164]
[1727163486860,9.44,146.39,146.34,3.4167]
[1727163487766,12.8557,146.39,146.34,3.4167]
[1727163488060,12.8557,146.39,146.35,3.4165]
[1727163488965,9.44,146.38,146.35,3.4165]
[1727163491864,9.44,146.36,146.31,3.49074745]
[1727163492065,9.44,146.36,146.3,10.8449]
[1727163492373,9.44,146.34,146.3,1.4049]
[1727163492663,9.44,146.34,146.31,3.39972668]
[1727163493069,9.44,146.34,146.32,3.4172]
[1727163493662,9.44,146.34,146.3,1.4049]
[1727163494170,9.44,146.34,146.32,3.4172]
[1727163495970,9.44,146.35,146.33,3.4171]
[1727163496275,9.44,146.35,146.3,10.8449]
[1727163496774,9.44,146.35,146.32,3.4171]
[1727163504277,9.44,146.34,146.32,3.4171]
[1727163505790,80.08244419,146.43,146.3,12.85364185]
[1727163505988,1.4319,146.42,146.32,9.44]
[1727163506284,9.44,146.38,146.33,3.34391989]
[1727163506680,1.4319,146.42,146.34,9.44]
[1727163506885,9.44,146.4,146.35,12.84407217]
[1727163507080,9.44,146.4,146.35,9.44]
[1727163507489,9.44,146.4,146.37,3.416]
[1727163508486,9.44,146.4,146.36,3.4163]
[1727163509281,9.44,146.39,146.36,3.4163]
[1727163511086,9.44,146.39,146.37,3.4159]
[1727163511278,4.8471,146.42,146.35,9.44]
[1727163511588,9.44,146.41,146.36,11.12447654]
[1727163511890,9.44,146.41,146.38,3.4157]
[1727163512381,9.44,146.39,146.34,12.78187508]
[1727163512585,9.44,146.39,146.35,11.12395739]
[1727163512785,9.44,146.39,146.36,4.69253808]
[1727163513088,9.44,146.39,146.36,3.4162]
[1727163520089,9.44,146.37,146.29,1.3281]
[1727163520294,1.4319,146.42,146.31,9.44]
[1727163520295,9.44,146.36,146.31,9.44]
[1727163520595,9.44,146.35,146.33,3.4169]
[1727163522292,9.44,146.35,146.32,3.48343679]
[1727163522293,9.44,146.35,146.32,3.4171]
[1727163522590,9.44,146.35,146.33,11.12868852]
[1727163522796,9.44,146.35,146.32,3.4171]
[1727163522984,9.44,146.33,146.31,3.4174]
[1727163523190,9.44,146.33,146.31,6.79515555]
[1727163526490,9.44,146.33,146.31,3.4174]
[1727163526698,9.44,146.32,146.25,82.0]
[1727163526893,9.44,146.3,146.27,11.12591902]
[1727163527203,9.44,146.3,146.28,11.12591902]
[1727163527388,9.44,146.3,146.29,11.12591902]
[1727163527696,9.44,146.3,146.29,4.6934822]
[1727163527887,9.44,146.3,146.25,91.44]
[1727163528088,9.44,146.3,146.29,6.4316376]